bitfinex/quotes_SOLUSD_20251124
["timestamp","ask_amount","ask_price","bid_price","bid_amount"]
[1764005467636,0.72,136.67,136.59,0.67]
[1764005468146,0.72,136.67,136.55,7.99285557]
[1764005468368,0.72,136.67,136.55,0.67]
[1764005468369,16.308864,136.64,136.55,0.67]
[1764005468537,16.308864,136.64,136.53,17.78315938]
[1764005468740,0.72,136.63,136.54,0.67]
[1764005468978,0.72,136.63,136.48,72.28998087]
[1764005468979,24.34839899,136.63,136.5,7.99591532]
[1764005469471,0.72,136.62,136.5,0.67]
[1764005469770,0.72,136.62,136.44,50.0]
[1764005469771,16.308864,136.58,136.46,0.67]
[1764005470144,0.72,136.57,136.46,7.99815477]
[1764005470365,0.72,136.57,136.47,0.67]
[1764005470667,0.72,136.59,136.48,13.14882769]
[1764005471042,16.308864,136.61,136.5,25.64102563]
[1764005471235,17.028864,136.61,136.51,9.78882769]
[1764005471467,0.72,136.61,136.51,10.45882769]
[1764005471669,0.72,136.61,136.52,0.67]
[1764005471869,1.99999999,136.7,136.53,9.78882769]
[1764005472070,17.82,136.74,136.54,50.0]
[1764005472071,0.72,136.64,136.54,50.0]
[1764005472386,3.36,136.69,136.55,9.78882769]
[1764005472546,17.028864,136.68,136.55,13.81882769]
[1764005472869,0.72,136.68,136.57,9.78882769]
[1764005473039,1.93593088,136.71,136.58,25.62600673]
[1764005473239,0.72,136.67,136.58,26.29600673]
[1764005473439,0.72,136.67,136.59,0.67]
[1764005473763,0.72,136.69,136.6,9.78882769]
[1764005473967,0.72,136.69,136.59,4.03]
[1764005474462,16.308864,136.68,136.57,7.32215884]
[1764005474634,19.668864,136.68,136.56,7.32263831]
[1764005474839,17.028864,136.67,136.55,0.67]
[1764005475154,17.028864,136.67,136.55,7.99320754]
[1764005475354,0.72,136.66,136.55,7.99320754]
[1764005475744,3.36,136.65,136.55,0.67]
[1764005475947,0.72,136.66,136.55,7.99331868]
[1764005476170,4.08,136.65,136.55,7.99331868]
[1764005476466,4.08,136.65,136.52,0.67]
[1764005476467,0.72,136.65,136.52,0.67]
[1764005476669,16.308864,136.63,136.52,0.67]
[1764005476845,16.308864,136.63,136.53,9.78882769]
[1764005477046,0.72,136.62,136.54,7.32386113]
[1764005477340,20.388864,136.65,136.54,0.67]
[1764005477560,0.72,136.64,136.55,0.67]
[1764005478496,17.028864,136.64,136.55,0.67]
[1764005478751,0.72,136.64,136.55,0.67]
[1764005478948,0.72,136.63,136.55,0.67]
[1764005479272,0.72,136.63,136.53,7.99439756]
[1764005479447,17.028864,136.63,136.53,7.99439756]
[1764005479647,17.028864,136.63,136.5,0.67]
[1764005479958,0.72,136.62,136.5,7.99600732]
[1764005480158,0.72,136.62,136.5,0.67]
[1764005480945,0.72,136.62,136.48,0.67]
[1764005481159,16.308864,136.58,136.48,7.32703195]
[1764005481348,19.668864,136.58,136.49,0.67]
[1764005481550,19.668864,136.58,136.45,50.0]
[1764005481551,17.028864,136.57,136.45,0.67]
[1764005481955,4.08,136.56,136.45,0.67]
[1764005482151,0.72,136.56,136.45,0.67]
[1764005482448,0.72,136.56,136.46,9.78882769]
[1764005482852,9.78882769,136.62,136.46,9.78882769]
[1764005482853,0.71,136.57,136.48,9.78882769]
[1764005483055,16.308864,136.62,136.48,9.78882769]
[1764005483056,0.71,136.61,136.5,9.78882769]
[1764005483253,3.36,136.62,136.5,9.78882769]
[1764005483460,19.668864,136.62,136.51,0.7]
[1764005483666,0.71,136.61,136.52,9.78882769]
[1764005483980,0.71,136.61,136.49,8.02654406]
[1764005484156,17.018864,136.61,136.5,0.7]
[1764005484560,0.71,136.6,136.5,0.7]
[1764005484759,3.36,136.59,136.45,0.73286918]
[1764005484953,3.36,136.59,136.46,0.7]
[1764005485280,17.018864,136.58,136.46,8.02770725]
[1764005485648,16.308864,136.54,136.42,0.7]
[1764005485848,10.49882769,136.57,136.39,8.03191582]
[1764005485849,16.308864,136.5,136.39,8.03191582]
[1764005486090,16.308864,136.55,136.4,0.7]
[1764005486247,19.668864,136.54,136.4,0.7]
[1764005486452,20.378864,136.54,136.41,9.78882769]
[1764005486670,0.71,136.53,136.41,9.78882769]
[1764005486953,0.71,136.53,136.42,0.7]
[1764005487157,17.018864,136.53,136.43,7.32976618]
[1764005487366,17.018864,136.53,136.42,8.03020173]
[1764005487549,0.71,136.52,136.42,8.03020173]
[1764005487860,7.13269731,136.64,136.44,9.78882769]
[1764005488051,4.07,136.61,136.46,9.78882769]
[1764005488248,4.07,136.61,136.45,0.7]
[1764005488249,6.06999999,136.61,136.45,0.7]
[1764005488590,16.308864,136.57,136.45,0.7]
[1764005488949,0.71,136.56,136.45,0.7]
[1764005489278,16.308864,136.54,136.44,7.32914022]
[1764005489475,16.308864,136.52,136.44,7.32914022]
[1764005489672,16.308864,136.52,136.41,0.7]
[1764005489883,3.36,136.54,136.42,0.7]
[1764005490066,0.71,136.53,136.43,9.78882769]
[1764005490261,4.07,136.56,136.45,9.78882769]
[1764005490462,4.07,136.56,136.44,0.7]
[1764005490463,16.308864,136.55,136.44,0.7]
[1764005490766,0.71,136.55,136.44,0.7]
[1764005490987,0.71,136.54,136.44,0.7]
[1764005491194,0.71,136.54,136.44,8.02876291]
[1764005491370,4.07,136.54,136.44,8.02876291]
[1764005491573,4.07,136.54,136.45,0.7]
[1764005491883,0.71,136.53,136.45,0.7]
[1764005492057,0.71,136.58,136.45,0.7]
[1764005492262,3.36,136.58,136.45,0.7]
[1764005492490,0.71,136.57,136.45,0.7]
[1764005492872,4.07,136.57,136.45,0.7]
[1764005493192,4.07,136.57,136.46,7.32815477]
[1764005493384,0.71,136.56,136.46,7.32815477]
[1764005493688,16.308864,136.54,136.45,8.02854727]
[1764005493857,0.71,136.53,136.45,7.32854727]
[1764005494058,0.71,136.53,136.41,102.96242123]
[1764005494059,0.71,136.53,136.44,0.7]
[1764005495152,0.71,136.53,136.41,26.09769169]
[1764005495153,0.71,136.53,136.41,8.03055804]
[1764005495785,16.308864,136.5,136.41,8.03055804]
[1764005495960,16.308864,136.5,136.41,0.7]
[1764005496162,0.71,136.49,136.41,0.7]
[1764005496486,0.71,136.49,136.41,8.03083399]
[1764005496865,0.71,136.49,136.42,0.7]
[1764005497579,0.71,136.49,136.4,8.03097883]
[1764005497978,4.07,136.49,136.41,0.7]
[1764005498580,0.71,136.48,136.39,16.308864]
[1764005498781,16.308864,136.51,136.39,24.34073134]
[1764005498967,0.71,136.5,136.4,0.7]
[1764005499166,0.71,136.5,136.41,25.65794295]
[1764005499363,32.44219444,136.55,136.46,8.80994492]
[1764005499364,0.71,136.55,136.46,8.80994492]
[1764005499570,0.71,136.58,136.46,8.80994492]
[1764005499795,9.31704288,136.67,136.5,8.80994492]
[1764005500094,3.36,136.66,136.5,8.80994492]
[1764005500268,4.07,136.66,136.51,0.7]
[1764005500466,0.71,136.65,136.51,0.7]
[1764005501184,0.71,136.65,136.52,25.63726925]
[1764005501372,4.07,136.65,136.52,62.26193962]
[1764005501566,4.07,136.65,136.53,0.7]
[1764005501766,16.308864,136.63,136.53,0.7]
[1764005501962,0.71,136.62,136.53,0.7]
[1764005502188,4.07,136.64,136.53,0.7]
[1764005502389,4.07,136.64,136.53,9.50994492]
[1764005502984,0.71,136.63,136.54,0.7]
[1764005503189,0.71,136.63,136.54,8.02371502]
[1764005503391,17.018864,136.63,136.54,0.7]
[1764005503695,17.018864,136.63,136.52,0.7]
[1764005503897,0.71,136.62,136.52,0.7]
[1764005504099,0.71,136.62,136.36,0.9]
[1764005504100,8.80994492,136.5,136.36,0.9]
[1764005504281,3.38,136.49,136.37,0.7]
[1764005504896,0.71,136.48,136.37,0.7]
[1764005505481,25.11880892,136.47,136.37,0.7]
[1764005505785,16.308864,136.44,136.36,0.2]
[1764005506195,0.71,136.43,136.36,0.2]
[1764005506498,0.71,136.43,136.31,0.2]
[1764005506499,3.38,136.42,136.31,0.2]
[1764005506812,3.38,136.42,136.29,16.308864]
[1764005506985,8.80994492,136.4,136.25,3.58]
[1764005507309,0.71,136.39,136.26,58.80994492]
[1764005507527,0.71,136.39,136.25,0.2]
[1764005507528,8.80994492,136.36,136.25,0.2]
[1764005507802,19.688864,136.35,136.25,7.53924336]
[1764005507986,3.38,136.34,136.25,7.53924336]
[1764005508185,4.08,136.34,136.25,7.53924336]
[1764005508406,4.08,136.34,136.25,0.2]
[1764005508407,8.80994492,136.31,136.25,0.2]
[1764005508902,0.7,136.3,136.25,0.2]
[1764005509077,4.08,136.3,136.25,0.2]
[1764005509274,0.7,136.33,136.25,0.9]
[1764005509582,3.38,136.31,136.25,0.2]
[1764005509899,3.38,136.32,136.25,7.53937539]
[1764005510080,0.7,136.33,136.25,0.2]
[1764005510282,4.08,136.33,136.25,0.2]
[1764005510786,0.7,136.32,136.25,0.2]
[1764005511300,3.38,136.33,136.25,8.23942021]
[1764005511798,0.7,136.35,136.26,0.7]
[1764005512000,3.38,136.34,136.26,0.7]
[1764005512405,4.08,136.34,136.26,0.7]
[1764005512916,1.99999999,136.44,136.26,0.7]
[1764005513074,0.69,136.36,136.26,0.7]
[1764005513269,4.07,136.36,136.27,7.33837234]
[1764005513674,4.07,136.36,136.27,8.03837234]
[1764005513982,0.69,136.36,136.28,0.7]
[1764005514589,0.69,136.36,136.26,7.33883123]
[1764005514908,0.69,136.36,136.26,8.03883123]
[1764005515106,16.998864,136.36,136.26,8.03883123]
[1764005515604,0.69,136.39,136.27,1.43383723]
[1764005515776,0.69,136.38,136.27,17.008864]
[1764005516107,0.69,136.38,136.28,0.7]
[1764005516589,0.69,136.38,136.26,8.03886067]
[1764005517203,0.69,136.38,136.27,0.7]
[1764005517387,0.69,136.38,136.28,7.33783387]
[1764005517586,16.308864,136.36,136.27,8.03832353]
[1764005518107,0.69,136.35,136.27,8.03832353]
[1764005518407,16.308864,136.37,136.28,0.7]
[1764005518581,9.49994492,136.4,136.28,0.7]
[1764005518582,0.69,136.39,136.28,0.7]
[1764005519299,0.69,136.39,136.29,7.33729547]
[1764005519501,0.69,136.39,136.28,0.7]
[1764005519717,0.69,136.41,136.29,8.80994492]
[1764005520003,1.99999999,136.49,136.29,8.80994492]
[1764005520004,0.69,136.47,136.33,8.80994492]
[1764005520182,7.32661463,136.49,136.3,1.43367571]
[1764005520183,3.38,136.46,136.3,1.43367571]
[1764005520390,3.38,136.46,136.31,0.7]
[1764005520391,16.308864,136.42,136.31,0.7]
[1764005520695,9.49994492,136.45,136.31,0.7]
[1764005520879,8.80994492,136.43,136.31,0.7]
[1764005521073,16.308864,136.42,136.31,0.7]
[1764005521296,20.378864,136.42,136.32,7.33568075]
[1764005521609,0.69,136.41,136.32,7.33568075]
[1764005521910,0.69,136.41,136.3,0.7]
[1764005522210,16.308864,136.4,136.3,0.7]
[1764005522682,0.69,136.39,136.3,0.7]
[1764005523594,0.69,136.39,136.31,7.33621891]
[1764005523796,0.69,136.39,136.3,0.7]
[1764005524079,16.308864,136.35,136.27,0.7]
[1764005524483,0.69,136.34,136.27,0.7]
[1764005524801,0.69,136.34,136.25,0.2]
[1764005526098,16.308864,136.3,136.25,0.2]
[1764005526296,8.80994492,136.29,136.25,0.2]
[1764005526487,0.69,136.29,136.25,0.2]
[1764005526690,0.69,136.28,136.25,0.2]
[1764005527009,4.07,136.28,136.23,0.2]
[1764005527226,4.07,136.28,136.15,0.2]
[1764005527227,16.308864,136.24,136.15,0.2]
[1764005527427,16.308864,136.2,136.15,0.2]
[1764005527727,3.38,136.19,136.15,0.2]
[1764005527898,0.69,136.23,136.15,0.92]
[1764005528098,3.38,136.21,136.15,0.92]
[1764005528431,3.38,136.21,136.15,0.2]
[1764005528732,3.38,136.22,136.16,0.72]
[1764005529104,4.07,136.22,136.16,0.72]
[1764005529321,4.07,136.22,136.15,0.2]
[1764005529620,0.69,136.21,136.15,7.54469723]
[1764005529794,0.69,136.21,136.15,25.90679785]
[1764005530191,0.69,136.21,136.15,7.54469723]
[1764005531622,3.38,136.24,136.17,7.34376147]
[1764005531821,3.38,136.24,136.17,25.70316515]
[1764005532020,4.07,136.24,136.17,25.70316515]
[1764005532210,6.76841713,136.32,136.18,0.72]
[1764005532402,0.69,136.29,136.18,0.72]
[1764005532598,4.07,136.29,136.18,0.72]
[1764005532800,4.07,136.29,136.19,8.80994492]
[1764005532995,4.07,136.29,136.18,0.72]
[1764005533424,17.62,136.37,136.19,8.80994492]
[1764005533626,0.69,136.33,136.19,8.80994492]
[1764005533818,0.69,136.33,136.2,26.41750366]
[1764005534123,0.69,136.33,136.2,0.72]
[1764005534305,8.80994492,136.32,136.21,0.72]
[1764005534708,0.69,136.31,136.21,0.72]
[1764005534908,16.308864,136.29,136.19,25.69932424]
[1764005535109,3.38,136.28,136.2,0.72]
[1764005535313,3.38,136.28,136.19,25.69932424]
[1764005535314,8.80994492,136.27,136.19,7.3426167]
[1764005535516,8.80994492,136.25,136.16,7.34427009]
[1764005535713,16.308864,136.22,136.15,8.26471893]
[1764005536122,0.69,136.21,136.15,8.26471893]
[1764005536326,0.69,136.26,136.16,0.72]
[1764005537536,0.69,136.26,136.17,25.70316515]
[1764005537712,20.378864,136.28,136.17,25.70316515]
[1764005538040,3.38,136.28,136.18,0.72]
[1764005538207,4.07,136.3,136.18,0.72]
[1764005538552,20.378864,136.3,136.18,0.72]
[1764005538707,0.69,136.29,136.18,0.72]
[1764005539408,0.69,136.29,136.19,25.69939055]
[1764005539604,0.69,136.29,136.19,62.41280563]
[1764005539808,0.69,136.29,136.2,0.72]
[1764005540614,3.38,136.31,136.2,0.72]
[1764005540838,4.07,136.31,136.2,0.72]
[1764005541408,0.69,136.31,136.22,25.69373072]
[1764005541608,0.69,136.34,136.22,25.69373072]
[1764005541829,0.69,136.34,136.23,0.72]
[1764005542941,8.80994492,136.33,136.23,0.72]
[1764005543240,8.80994492,136.33,136.22,25.69373072]
[1764005543241,8.80994492,136.33,136.22,7.34106592]
[1764005543421,0.7,136.32,136.22,8.00106592]
[1764005544042,0.7,136.32,136.22,26.35373072]
[1764005544219,0.7,136.32,136.23,0.66]
[1764005545144,0.7,136.32,136.22,25.69373072]
[1764005545345,8.80994492,136.29,136.2,8.0019682]
[1764005545636,8.80994492,136.27,136.15,0.86]
[1764005545807,8.80994492,136.27,136.16,7.34430082]
[1764005546010,0.7,136.26,136.17,0.66]
[1764005548028,3.38,136.27,136.18,25.70127771]
[1764005548232,0.7,136.39,136.21,66.308864]
[1764005548556,0.1,136.44,136.3,16.308864]
[1764005548752,0.7,136.42,136.31,39.88461071]
[1764005549052,0.7,136.42,136.32,50.0]
[1764005549254,0.7,136.42,136.31,8.80994492]
[1764005549420,0.7,136.42,136.24,100.0]
[1764005549740,0.7,136.42,136.27,16.308864]
[1764005549968,0.7,136.42,136.29,16.308864]
[1764005550266,0.7,136.42,136.3,25.67865003]
[1764005550430,0.7,136.42,136.31,5.25884094]
[1764005550632,0.7,136.42,136.32,5.25884094]
[1764005550828,0.7,136.42,136.33,5.25884094]
[1764005551034,0.7,136.42,136.34,5.25884094]
[1764005551232,0.7,136.42,136.35,5.25884094]
[1764005551531,0.7,136.42,136.36,5.25884094]
[1764005551733,0.7,136.42,136.37,5.25884094]
[1764005551927,0.7,136.42,136.38,5.25884094]
[1764005552240,0.1,136.44,136.39,5.25884094]
[1764005552553,0.8,136.44,136.4,5.25884094]
[1764005552764,0.8,136.44,136.41,5.25884094]
[1764005552942,0.8,136.44,136.33,25.67277486]
[1764005553141,0.8,136.44,136.34,5.25607912]
[1764005553331,0.8,136.44,136.35,5.25607912]
[1764005553536,0.8,136.44,136.36,5.25607912]
[1764005553736,0.8,136.44,136.37,5.25607912]
[1764005554038,8.80994492,136.43,136.27,55.03725242]
[1764005554242,16.308864,136.4,136.28,5.26421624]
[1764005554442,0.7,136.39,136.29,5.26421624]
[1764005554629,0.7,136.39,136.27,25.68430321]
[1764005554630,0.7,136.39,136.3,5.26421624]
[1764005554829,0.7,136.39,136.31,5.26421624]
[1764005555030,0.7,136.39,136.32,5.26421624]
[1764005555250,0.7,136.39,136.33,5.26421624]
[1764005555448,0.7,136.39,136.34,5.26421624]
[1764005555733,0.7,136.42,136.35,5.26421624]
[1764005556031,0.7,136.43,136.36,12.59733976]
[1764005556255,0.7,136.43,136.37,5.26421624]
[1764005556558,0.7,136.43,136.38,5.26421624]
[1764005556862,0.7,136.43,136.33,8.80994492]
[1764005557044,0.7,136.43,136.34,5.25663461]
[1764005557245,0.7,136.43,136.35,5.25663461]
[1764005557448,0.7,136.43,136.36,5.25663461]
[1764005557753,3.48,136.44,136.37,5.25663461]
[1764005557960,3.48,136.44,136.34,50.0]
[1764005557961,3.48,136.44,136.38,5.25663461]
[1764005558261,3.48,136.44,136.4,7.33137829]
[1764005558461,0.7,136.43,136.34,7.33456555]
[1764005558662,0.7,136.43,136.35,5.25152345]
[1764005558871,0.7,136.43,136.36,5.25152345]
[1764005559031,0.7,136.43,136.32,7.33515205]
[1764005559234,16.308864,136.41,136.33,5.2545643]
[1764005559434,16.308864,136.41,136.34,5.2545643]
[1764005559654,0.7,136.4,136.3,25.67865003]
[1764005559858,8.80994492,136.39,136.31,5.25462737]
[1764005560056,8.80994492,136.39,136.28,7.33771725]
[1764005560335,0.7,136.4,136.29,5.25744849]
[1764005560336,0.7,136.38,136.29,5.25744849]
[1764005560549,0.7,136.38,136.3,5.25744849]
[1764005560745,0.7,136.38,136.31,5.25744849]
[1764005560945,0.7,136.38,136.27,16.308864]
[1764005561263,0.7,136.38,136.28,5.25597382]
[1764005561435,0.7,136.38,136.29,5.25597382]
[1764005561635,0.7,136.38,136.3,5.25597382]
[1764005561958,0.7,136.38,136.28,16.308864]
[1764005561959,0.7,136.38,136.31,5.25597382]
[1764005562161,0.7,136.38,136.33,7.33514266]
[1764005562970,0.7,136.38,136.29,7.33729547]
[1764005563138,0.7,136.38,136.3,5.25422991]
[1764005563338,0.7,136.38,136.31,5.25422991]
[1764005563538,0.7,136.38,136.29,25.68053415]
[1764005563757,0.7,136.38,136.3,5.25119249]
[1764005563958,0.7,136.38,136.31,5.25119249]
[1764005564164,0.7,136.38,136.29,25.68053415]
[1764005564165,0.7,136.38,136.32,12.58668991]
[1764005564362,0.7,136.38,136.32,7.33549742]
[1764005565873,0.7,136.38,136.29,34.65175517]
[1764005566169,0.7,136.38,136.3,5.24784014]
[1764005566367,0.7,136.38,136.31,7.33621891]
[1764005566846,0.7,136.38,136.31,25.67676619]
[1764005568251,0.7,136.38,136.29,34.49047907]
[1764005568452,0.7,136.38,136.3,5.25215649]
[1764005568652,0.7,136.38,136.29,34.49047907]
[1764005568965,0.7,136.38,136.3,5.2517732]
[1764005569150,0.7,136.38,136.29,25.68053415]
[1764005569356,0.7,136.38,136.3,5.25158991]
[1764005569545,0.7,136.38,136.29,25.68053415]
[1764005569746,0.7,136.38,136.3,5.25155858]
[1764005569970,0.7,136.38,136.29,25.68053415]
[1764005570167,0.7,136.38,136.3,5.25136568]
[1764005572491,0.72,136.43,136.35,7.33406674]
[1764005572974,0.72,136.43,136.35,25.66923359]
[1764005573290,0.72,136.43,136.36,5.24346761]
[1764005573580,17.028864,136.43,136.29,8.80994492]
[1764005573749,16.308864,136.42,136.3,5.2492316]
[1764005573949,16.988864,136.42,136.31,5.2492316]
[1764005574173,0.68,136.41,136.32,5.2492316]
[1764005574384,0.68,136.41,136.33,5.2492316]
[1764005574550,0.68,136.41,136.31,25.67664445]
[1764005574750,0.68,136.41,136.32,5.25206869]
[1764005574985,0.68,136.41,136.31,25.67664445]
[1764005575156,0.68,136.41,136.32,5.25227755]
[1764005575359,0.68,136.41,136.33,5.25639247]
[1764005575560,0.68,136.41,136.31,7.33621891]
[1764005575765,0.68,136.41,136.32,5.25638532]
[1764005575988,0.68,136.41,136.33,5.25638532]
[1764005576284,0.68,136.41,136.31,18.34054728]
[1764005576488,0.68,136.41,136.32,5.2608657]
[1764005576666,3.38,136.4,136.32,5.2608657]
[1764005576860,16.308864,136.4,136.29,7.33721757]
[1764005577161,0.68,136.39,136.3,5.26344064]
[1764005577376,0.68,136.39,136.31,5.26344064]
[1764005577683,0.68,136.39,136.32,5.26344064]
[1764005577848,0.68,136.39,136.33,5.26344064]
[1764005578047,0.68,136.39,136.3,8.80994492]
[1764005578253,0.68,136.42,136.32,34.48482754]
[1764005578561,0.78,136.44,136.34,58.80994492]
[1764005578761,0.78,136.44,136.36,8.80994492]
[1764005578959,0.78,136.44,136.37,5.26439679]
[1764005579284,0.78,136.44,136.38,5.26439679]
[1764005579459,0.78,136.44,136.39,5.26439679]
[1764005579655,0.78,136.44,136.34,8.80994492]
[1764005579872,0.78,136.44,136.35,5.26105207]
[1764005580072,17.088864,136.44,136.36,5.26105207]
[1764005580379,16.308864,136.43,136.32,29.05488262]
[1764005580580,16.988864,136.43,136.33,8.80994492]
[1764005580753,0.68,136.42,136.33,8.80994492]
[1764005580950,16.308864,136.43,136.33,8.80994492]
[1764005580951,0.1,136.44,136.36,50.0]
[1764005581160,0.1,136.44,136.33,16.308864]
[1764005581161,0.78,136.44,136.33,16.308864]
[1764005581551,0.78,136.44,136.32,29.05488262]
[1764005581985,16.308864,136.42,136.32,10.71568075]
[1764005582163,0.68,136.41,136.32,7.33568075]
[1764005582355,0.1,136.44,136.35,8.80994492]
[1764005582554,0.1,136.44,136.4,100.0]
[1764005582792,0.1,136.44,136.43,8.80994492]
[1764005582988,1e-08,136.44,136.43,8.80994492]
[1764005583564,1e-08,136.44,136.43,58.80994492]
[1764005584163,0.68,136.56,136.47,8.80994492]
[1764005584377,0.68,136.55,136.46,3.38]
[1764005584567,0.68,136.55,136.47,25.64666226]
[1764005584762,0.68,136.55,136.47,75.64666226]
[1764005584985,0.1,136.57,136.48,8.80994492]
[1764005585294,1e-08,136.52,136.51,50.0]
[1764005585507,1e-08,136.52,136.51,128.49880892]
[1764005585784,0.1,136.57,136.56,50.0]
[1764005586118,0.68,136.66,136.57,58.80994492]
[1764005586298,2.61593088,136.71,136.62,50.0]
[1764005586593,2.61593088,136.71,136.6,50.0]
[1764005586594,0.68,136.68,136.63,7.31903681]
[1764005586953,0.68,136.7,136.63,7.31903681]
[1764005587156,0.68,136.7,136.61,25.61990365]
[1764005587404,0.68,136.7,136.61,41.92876765]
[1764005588002,0.68,136.7,136.62,108.80994492]
[1764005588205,0.68,136.7,136.62,100.0]
[1764005588387,0.68,136.7,136.63,7.31903681]
[1764005588710,0.68,136.7,136.56,7.32278851]
[1764005588711,7.99529753,136.7,136.56,7.32278851]
[1764005588871,7.99529753,136.7,136.57,100.0]
[1764005588872,16.988864,136.7,136.57,100.0]
[1764005589079,0.68,136.69,136.58,12.18994492]
[1764005589375,0.68,136.69,136.58,3.38]
[1764005589574,1.93593088,136.71,136.6,8.80994492]
[1764005589812,0.68,136.7,136.59,50.0]
[1764005589971,0.68,136.7,136.61,66.308864]
[1764005590176,0.68,136.7,136.62,53.38]
[1764005590472,1.93593088,136.71,136.63,75.61662884]
[1764005590675,1.93593088,136.71,136.63,57.31903681]
[1764005590890,0.68,136.7,136.62,50.0]
[1764005591209,0.68,136.7,136.62,10.69945695]
[1764005591414,1.93593088,136.71,136.65,16.308864]
[1764005591576,1.93593088,136.71,136.66,50.0]
[1764005591778,2.61593088,136.71,136.66,3.38]
[1764005592002,2.61593088,136.71,136.64,50.0]
[1764005592303,2.61593088,136.71,136.61,10.70004687]
[1764005592304,0.68,136.7,136.61,10.70004687]
[1764005592607,0.68,136.7,136.58,79.00579074]
[1764005592906,0.68,136.7,136.6,50.0]
[1764005593298,0.68,136.7,136.57,7.32190318]
[1764005593501,16.988864,136.7,136.57,7.32190318]
[1764005593684,8.80994492,136.69,136.56,3.38]
[1764005593880,9.48994492,136.69,136.56,3.38]
[1764005594083,16.308864,136.67,136.56,3.38]
[1764005594293,0.68,136.68,136.57,0.73222523]
[1764005594294,16.988864,136.68,136.57,0.73222523]
[1764005594613,0.68,136.67,136.57,8.05422645]
[1764005594798,0.68,136.67,136.57,26.35985726]
[1764005595913,0.68,136.67,136.57,0.73222523]
[1764005596213,16.308864,136.65,136.54,7.3233482]
[1764005596414,16.308864,136.65,136.53,7.32439756]
[1764005596589,0.68,136.64,136.54,18.30965284]
[1764005598402,0.68,136.64,136.54,25.63351397]
[1764005599079,0.68,136.64,136.54,75.63351397]
[1764005599279,0.68,136.64,136.56,100.0]
[1764005599496,0.68,136.64,136.56,103.38]
[1764005600089,0.68,136.64,136.56,53.38]
[1764005600291,0.68,136.66,136.56,103.38]
[1764005600490,2.61593088,136.71,136.58,25.62600673]
[1764005600712,0.68,136.7,136.6,50.0]
[1764005600892,0.68,136.7,136.59,4.11211801]
[1764005601211,0.68,136.7,136.6,3.38]
[1764005601413,0.68,136.7,136.58,75.62600673]
[1764005601414,0.68,136.7,136.58,7.32171621]
[1764005601706,0.68,136.7,136.58,25.62600673]
[1764005602220,0.68,136.7,136.61,58.80994492]
[1764005602408,1.93593088,136.71,136.66,58.80994492]
[1764005602600,1.93593088,136.71,136.66,60.69728272]
[1764005602796,1.93593088,136.71,136.66,28.99085801]
[1764005603198,1.93593088,136.71,136.67,0.73168947]
[1764005604114,1.93593088,136.71,136.66,7.31728272]
[1764005604315,0.71,136.7,136.64,7.31817714]
[1764005604615,0.71,136.7,136.64,25.61443006]
[1764005605498,1.93593088,136.71,136.64,25.61443006]
[1764005605706,1.93593088,136.71,136.65,0.73179656]
[1764005606029,0.71,136.7,136.61,100.0]
[1764005606189,1.93593088,136.71,136.63,108.80994492]